bitfinex/quotes_ETHUSD_20240621
["timestamp","ask_amount","ask_price","bid_price","bid_amount"]
[1718934003914,1.77831107,3530.7,3529.9,1.11130398]
[1718934004117,0.07064062,3530.6,3529.9,1.11130398]
[1718934004466,0.07064062,3530.6,3529.8,3.0]
[1718934004467,0.93864062,3530.6,3529.8,3.0]
[1718934005128,1.84895169,3530.6,3529.8,3.0]
[1718934005334,0.07064062,3530.6,3529.9,0.4633]
[1718934005561,0.07064062,3530.6,3530.0,2.47159191]
[1718934005875,1.77831107,3530.9,3530.2,0.868]
[1718934006161,0.07057306,3530.5,3530.2,0.868]
[1718934006367,1.77831107,3530.9,3530.2,0.868]
[1718934006654,3.1671,3531.2,3530.2,1.46148919]
[1718934006853,0.07057306,3530.8,3530.2,1.46148919]
[1718934007057,1.7799232,3530.9,3530.2,1.46148919]
[1718934007371,0.07057306,3530.7,3530.2,1.46148919]
[1718934007513,1.85059583,3530.8,3530.2,0.868]
[1718934007735,1.7799232,3530.8,3530.2,0.868]
[1718934007937,0.07067263,3530.7,3530.2,0.868]
[1718934008181,0.07067263,3530.7,3530.0,5.47159191]
[1718934008335,1.85059583,3530.7,3530.1,0.59348919]
[1718934009264,1.7799232,3530.6,3530.1,0.59348919]
[1718934010189,0.07067263,3530.5,3530.1,0.59348919]
[1718934013754,1.78216789,3530.7,3530.1,0.59348919]
[1718934013953,1.78216678,3530.7,3530.1,0.59348919]
[1718934014175,0.07067263,3530.6,3530.1,0.59348919]
[1718934014792,0.07067263,3530.6,3530.2,0.868]
[1718934016255,1.78203069,3530.7,3530.2,0.868]
[1718934016455,0.07067263,3530.5,3530.2,0.868]
[1718934016714,1.78203069,3530.7,3530.2,0.868]
[1718934016860,0.07067263,3530.4,3530.2,0.868]
[1718934017200,0.07067263,3530.3,3530.2,0.868]
[1718934017597,1.78203069,3530.7,3530.2,0.868]
[1718934017804,0.07067263,3530.3,3530.2,0.868]
[1718934018380,0.07067263,3530.3,3530.1,3.0]
[1718934018681,1.78203069,3530.3,3529.5,0.868]
[1718934018999,0.07074379,3530.2,3529.5,3.26313551]
[1718934019190,3.1671,3530.6,3529.6,3.0]
[1718934019191,1.78199108,3530.3,3529.6,3.0]
[1718934019375,1.78199108,3530.2,3529.6,3.0]
[1718934019697,0.07074379,3530.1,3529.6,5.47477546]
[1718934019901,0.07074379,3530.1,3529.6,3.0]
[1718934020065,1.78199108,3530.2,3529.5,0.868]
[1718934020397,1.78199108,3530.1,3529.5,0.868]
[1718934020776,0.07056592,3530.0,3529.5,0.868]
[1718934021670,0.07056592,3530.0,3529.4,3.0]
[1718934021885,1.78199108,3529.8,3529.4,3.0]
[1718934022176,1.85272653,3529.7,3529.4,3.0]
[1718934022380,1.78232421,3529.6,3529.4,3.0]
[1718934022888,0.07040232,3529.5,3529.4,3.0]
[1718934025006,0.07040232,3529.5,3529.2,1.135436]
[1718934025007,1.85273212,3529.5,3529.2,1.135436]
[1718934025317,1.8527497,3529.5,3529.2,1.135436]
[1718934025890,0.07040232,3529.5,3529.2,1.135436]
[1718934026293,1.8527497,3529.5,3529.2,1.135436]
[1718934027119,0.07040232,3529.5,3529.2,1.135436]
[1718934027685,2.36950232,3529.5,3529.2,1.135436]
[1718934028783,0.07040232,3529.5,3529.2,1.135436]
[1718934029015,0.07040232,3529.5,3529.2,1.3357796]
[1718934031339,0.07040232,3529.5,3529.2,1.135436]
[1718934031613,0.09914058,3529.5,3529.2,1.135436]
[1718934033141,2.2991,3529.4,3529.2,1.135436]
[1718934033436,0.09916194,3529.3,3529.2,1.135436]
[1718934033933,1.88148171,3529.3,3528.7,3.0]
[1718934034316,1.88148171,3529.3,3528.7,4.135547]
[1718934034516,1.88160405,3529.3,3528.7,4.135547]
[1718934035124,0.09916194,3529.3,3528.7,4.135547]
[1718934035328,1.88160405,3529.3,3528.7,4.135547]
[1718934035938,2.65044211,3529.1,3528.7,4.135547]
[1718934036137,1.78244211,3529.0,3528.7,1.135547]
[1718934036307,1.78244211,3528.9,3528.7,1.135547]
[1718934036509,0.09889146,3528.9,3528.7,1.135547]
[1718934036926,1.78244211,3529.2,3528.7,1.135547]
[1718934037125,0.09889146,3528.8,3528.7,1.135547]
[1718934037350,1.78244211,3529.3,3528.7,1.3822317]
[1718934037562,4.08043937,3529.4,3528.7,1.3822317]
[1718934037705,0.09889146,3529.2,3528.7,1.3822317]
[1718934037915,4.08043937,3529.4,3528.7,1.3822317]
[1718934038111,0.09889146,3529.1,3528.7,1.3822317]
[1718934038336,2.07822926,3529.7,3528.8,0.52502317]
[1718934038337,1.78133937,3529.5,3528.8,0.52502317]
[1718934038547,0.09889146,3529.0,3528.8,3.52502317]
[1718934038843,1.78133937,3529.5,3528.8,3.52502317]
[1718934039032,0.09889146,3529.4,3528.8,3.52502317]
[1718934039547,1.78133937,3529.6,3528.8,3.52502317]
[1718934039752,0.09889146,3529.3,3528.8,3.52502317]
[1718934039915,1.78133937,3529.5,3528.8,3.52502317]
[1718934040120,0.09889146,3529.2,3528.8,3.52502317]
[1718934040475,0.09889146,3529.1,3528.8,3.52502317]
[1718934040747,1.78089784,3529.6,3528.8,3.52502317]
[1718934040953,0.09889146,3529.0,3528.9,0.868]
[1718934041255,0.09893417,3529.0,3528.9,1.44552549]
[1718934041451,2.2991,3529.7,3528.9,1.99552549]
[1718934041745,0.09893417,3529.6,3528.9,4.99552549]
[1718934041952,0.09893417,3529.6,3529.0,0.93777572]
[1718934042158,0.09893417,3529.6,3529.0,3.93777572]
[1718934042633,0.09893417,3529.6,3529.0,0.93777572]
[1718934045932,0.09893417,3529.6,3528.8,3.868]
[1718934046135,0.09893417,3529.6,3528.8,0.868]
[1718934046722,1.87965112,3529.6,3528.8,0.868]
[1718934047051,0.09893417,3529.6,3528.8,0.868]
[1718934047627,1.87967767,3529.6,3528.8,0.868]
[1718934048444,0.09893417,3529.6,3528.8,0.868]
[1718934049236,0.09893417,3529.6,3528.8,1.0683547]
[1718934049653,1.87967767,3529.6,3528.8,1.0683547]
[1718934050046,1.87971646,3529.6,3528.8,1.0683547]
[1718934050762,0.09893417,3529.6,3528.7,1.135547]
[1718934051060,1.87972502,3529.6,3528.7,2.003547]
[1718934052368,1.78079085,3529.5,3528.7,2.003547]
[1718934052659,0.09893417,3529.6,3528.7,2.003547]
[1718934052660,0.09900537,3529.4,3528.7,2.003547]
[1718934052865,1.78079085,3529.5,3528.7,2.003547]
[1718934053064,0.09900537,3529.4,3528.7,1.135547]
[1718934053270,0.09900537,3529.4,3528.7,2.003547]
[1718934053674,1.88021146,3529.4,3528.7,2.003547]
[1718934054380,1.88039653,3529.4,3528.7,2.003547]
[1718934055447,2.59297515,3529.4,3528.7,2.003547]
[1718934055652,1.78139116,3529.0,3528.7,1.135547]
[1718934056071,1.8803538,3528.9,3528.7,1.135547]
[1718934056273,1.8803538,3528.9,3528.4,3.0]
[1718934056274,0.09896264,3528.9,3528.4,3.0]
[1718934056483,0.868,3529.2,3528.4,3.0]
[1718934056484,1.7819415,3528.8,3528.4,3.0]
[1718934056772,0.0988096,3528.7,3528.5,1.135713]
[1718934057278,1.7819415,3528.8,3528.5,1.135713]
[1718934057464,0.0988096,3528.7,3528.5,1.135713]
[1718934057691,1.7819415,3528.8,3528.5,1.135713]
[1718934058276,0.0988096,3528.7,3528.5,1.135713]
[1718934058485,1.7819415,3528.8,3528.5,1.135713]
[1718934058644,0.09863163,3528.7,3528.5,1.135713]
[1718934058844,1.7819415,3528.8,3528.5,1.135713]
[1718934059045,0.09863163,3528.7,3528.5,1.135713]
[1718934059260,1.7819415,3528.8,3528.5,1.135713]
[1718934059544,0.09863163,3528.7,3528.5,1.135713]
[1718934059965,1.78192572,3528.8,3528.5,1.135713]
[1718934060144,1.78192572,3528.7,3528.5,1.135713]
[1718934060681,0.09863163,3528.6,3528.5,1.135713]
[1718934060878,1.78192572,3528.7,3528.5,1.135713]
[1718934061177,0.09863163,3528.6,3528.5,1.135713]
[1718934061473,2.2991,3528.6,3528.5,1.135713]
[1718934061774,2.39773163,3528.6,3528.0,3.0]
[1718934062071,4.08102572,3528.6,3528.0,3.868]
[1718934062249,4.08102572,3528.6,3528.1,1.135772]
[1718934062578,4.08156669,3528.6,3528.1,1.135772]
[1718934062955,1.78246669,3528.6,3528.1,3.91220013]
[1718934063208,1.78246669,3528.7,3528.2,3.868]
[1718934063477,4.08156669,3528.9,3528.2,3.868]
[1718934063779,1.88097374,3528.8,3528.2,3.868]
[1718934064246,1.78246669,3528.7,3528.2,3.868]
[1718934065349,1.78246669,3528.7,3528.2,6.64442813]
[1718934065693,1.78347792,3528.7,3528.2,6.64442813]
[1718934065849,1.78348252,3528.7,3528.2,6.64442813]
[1718934066999,1.78348252,3528.6,3528.2,3.0]
[1718934067282,1.78348252,3528.6,3528.1,1.135772]
[1718934067498,0.09850705,3528.5,3528.1,1.135772]
[1718934067780,1.88198957,3528.5,3528.1,1.135772]
[1718934068161,1.78348252,3528.4,3528.1,1.135772]
[1718934068357,0.09850705,3528.5,3528.1,1.135772]
[1718934068358,1.88198957,3528.5,3528.1,1.135772]
[1718934068592,1.78348252,3528.5,3528.1,1.135772]
[1718934068768,0.09850705,3528.4,3528.1,1.135772]
[1718934068976,1.78376015,3528.3,3528.1,1.135772]
[1718934069215,1.78376015,3528.2,3528.1,1.135772]
[1718934070571,1.78376015,3528.2,3527.6,3.0]
[1718934070772,1.88218887,3528.2,3527.7,1.135904]
[1718934071193,1.78376015,3528.2,3527.7,1.135904]
[1718934071693,1.78297353,3528.2,3527.7,1.135904]
[1718934072363,4.08207353,3528.3,3527.7,1.135904]
[1718934072564,1.78297353,3528.2,3527.7,1.135904]
[1718934072774,1.88114232,3528.2,3527.7,1.135904]
[1718934073614,1.78297353,3528.1,3527.7,1.135904]
[1718934074226,0.09816879,3528.0,3527.7,1.135904]
[1718934074506,1.78297353,3528.2,3527.7,1.135904]
[1718934074829,0.09816879,3527.9,3527.7,1.135904]
[1718934074972,1.78225927,3528.2,3527.7,1.135904]
[1718934075167,0.09815099,3527.8,3527.7,1.135904]
[1718934075391,1.78225927,3528.1,3527.7,1.135904]
[1718934075577,0.09814031,3527.8,3527.7,1.135904]
[1718934075766,1.78225927,3528.1,3527.7,1.135904]
[1718934075972,0.09814031,3527.8,3527.7,1.135904]
[1718934076178,1.78225927,3528.1,3527.7,1.135904]
[1718934076412,2.2991,3528.3,3527.7,1.135904]
[1718934076413,0.09814031,3527.8,3527.7,1.135904]
[1718934076880,1.78225927,3528.2,3527.7,1.135904]
[1718934077088,0.09814031,3528.1,3527.7,1.135904]
[1718934078322,0.09814031,3528.0,3527.7,1.135904]
[1718934078672,1.78168328,3528.2,3527.7,1.135904]
[1718934078911,0.09815099,3528.1,3527.7,1.135904]
[1718934079692,1.87983427,3528.1,3527.7,1.135904]
[1718934080501,0.09815099,3528.1,3527.7,1.135904]
[1718934080703,0.60284442,3528.1,3527.7,1.135904]
[1718934081080,0.08682528,3528.1,3527.7,1.135904]
[1718934081591,1.86807115,3528.1,3527.7,1.135904]
[1718934082075,1.86790493,3528.1,3527.7,1.135904]
[1718934082795,0.08682528,3528.1,3527.7,1.135904]
[1718934083401,1.78072918,3528.2,3527.7,1.135904]
[1718934083602,0.09777347,3528.0,3527.7,1.135904]
[1718934083785,1.78072918,3528.2,3527.7,1.135904]
[1718934084114,2.2991,3528.3,3527.7,1.135904]
[1718934084304,0.09777347,3528.1,3527.7,1.135904]
[1718934086320,0.09777347,3528.0,3527.7,1.135904]
[1718934086777,4.60417864,3528.3,3527.7,1.135904]
[1718934086977,0.09777347,3527.9,3527.7,1.135904]
[1718934087198,1.78062863,3528.2,3527.7,1.135904]
[1718934087407,0.09777347,3527.8,3527.7,1.135904]
[1718934087582,1.78055761,3528.2,3527.7,4.135904]
[1718934087792,1.78055761,3528.2,3527.7,1.135904]
[1718934087995,0.09777347,3528.1,3527.7,1.135904]
[1718934089722,0.09777347,3528.1,3527.7,2.2042944]
[1718934089886,0.09777347,3528.1,3527.9,0.868]
[1718934090088,4.07965761,3528.7,3527.9,0.868]
[1718934090404,0.09452101,3528.6,3527.9,0.868]
[1718934091290,1.87526602,3528.6,3527.9,0.868]
[1718934091528,2.37950262,3528.6,3527.7,1.135904]
[1718934091699,1.78074501,3528.4,3527.7,2.003904]
[1718934091890,0.0947138,3528.3,3527.7,2.003904]
[1718934092092,1.78074501,3528.5,3527.7,2.003904]
[1718934092302,0.0947138,3528.4,3527.7,2.003904]
[1718934093296,0.0947138,3528.4,3527.7,2.2506244]
[1718934094046,1.78183291,3528.5,3527.7,2.2506244]
[1718934094328,1.78183291,3528.4,3527.7,2.2506244]
[1718934094633,0.0947138,3528.4,3527.7,2.2506244]
[1718934094805,1.87654671,3528.4,3527.7,2.2506244]
[1718934096245,1.78183291,3528.3,3527.7,2.2506244]
[1718934096598,0.09472451,3528.2,3527.7,2.2506244]
[1718934097120,0.09472451,3528.1,3527.7,2.2506244]
[1718934097298,1.78300323,3528.3,3527.7,2.2506244]
[1718934097499,0.09472451,3528.2,3527.7,2.2506244]
[1718934099051,0.09472451,3528.2,3527.8,0.52506244]
[1718934099258,1.78300323,3528.2,3527.8,3.52506244]
[1718934099569,0.09471737,3528.1,3527.8,3.52506244]
[1718934099772,0.09471737,3528.1,3527.8,3.0]
[1718934100056,1.78428423,3528.3,3527.7,2.2506244]
[1718934100462,1.78428423,3528.2,3527.7,2.2506244]
[1718934100746,1.87901231,3528.2,3527.7,2.2506244]
[1718934100922,1.87901231,3528.2,3527.8,0.52506244]
[1718934101126,1.87901231,3528.2,3527.8,3.52506244]
[1718934102445,1.78428423,3528.1,3527.8,3.52506244]
[1718934102669,1.78428423,3527.9,3527.8,3.0]
[1718934102815,2.2991,3528.2,3527.7,1.135904]
[1718934103016,2.2991,3528.2,3527.2,3.0]
[1718934103017,2.08336525,3527.9,3527.2,3.0]
[1718934103243,1.78586231,3527.6,3527.2,3.0]
[1718934103412,1.78586231,3527.6,3527.2,4.136052]
[1718934103832,0.09473521,3527.5,3527.2,4.136052]
[1718934104924,1.88059752,3527.5,3527.2,4.136052]
[1718934106036,1.88042713,3527.5,3527.2,4.136052]
[1718934108429,1.88042713,3527.5,3527.3,3.0]
[1718934108628,1.88042713,3527.5,3527.2,1.136052]
[1718934109360,1.88024995,3527.5,3527.2,1.136052]
[1718934109559,1.78551474,3527.4,3527.2,1.136052]
[1718934109864,0.09437103,3527.3,3527.2,1.136052]
[1718934110045,1.78551474,3527.5,3527.2,1.136052]
[1718934110247,0.09437103,3527.4,3527.2,1.136052]
[1718934110739,1.87988577,3527.4,3527.2,1.136052]
[1718934110938,0.09437103,3527.4,3527.2,1.136052]
[1718934111158,1.87988577,3527.4,3527.2,1.136052]
[1718934111456,0.09437103,3527.4,3527.2,1.136052]
[1718934111845,1.87988577,3527.4,3527.2,1.136052]
[1718934112251,0.09437103,3527.4,3527.2,1.136052]
[1718934112452,1.78610381,3527.3,3527.2,1.136052]
[1718934112752,1.88047484,3527.3,3527.2,1.136052]
[1718934115434,0.09437103,3527.3,3527.2,1.136052]
[1718934115634,1.78582024,3527.3,3527.2,1.136052]
[1718934115833,1.88019127,3527.3,3527.2,1.136052]
[1718934116077,1.88018594,3527.3,3527.2,1.136052]
[1718934116744,1.880069,3527.3,3527.2,1.136052]
[1718934116934,0.09437103,3527.3,3527.2,1.136052]
[1718934117340,1.78569797,3527.5,3527.2,1.136052]
[1718934117533,0.0943282,3527.4,3527.2,1.136052]
[1718934122167,1.78546121,3527.5,3527.2,1.136052]
[1718934122762,0.0943282,3527.4,3527.2,1.136052]
[1718934127545,0.0943282,3527.4,3527.2,1.3827872]
[1718934127741,1.78531719,3527.6,3527.2,2.2507872]
[1718934127955,3.1671,3528.1,3527.2,2.2507872]
[1718934128159,1.78510931,3527.6,3527.2,2.2507872]
[1718934128860,0.09437103,3527.5,3527.3,0.57140872]
[1718934129090,0.09437103,3527.5,3527.3,3.57140872]
[1718934131863,0.09437103,3527.5,3527.3,3.0]
[1718934132196,0.09437103,3527.5,3527.2,2.004052]
[1718934135075,0.09437103,3527.5,3527.2,1.136052]
[1718934135389,0.09437103,3527.5,3527.2,2.004052]
[1718934137005,0.09437103,3527.5,3527.4,1.3313]
[1718934137294,0.09437103,3527.5,3527.4,2.1830352]
[1718934137493,2.2991,3528.5,3527.4,5.1830352]
[1718934137494,1.78502275,3528.3,3527.4,5.1830352]
[1718934137693,1.78502275,3528.3,3527.8,0.868]
[1718934138098,1.87942236,3528.2,3527.8,0.868]
[1718934138491,0.09439961,3528.2,3527.8,0.868]
[1718934138691,0.09439961,3528.2,3527.8,1.2548]
[1718934138873,1.78502275,3528.3,3527.8,1.2548]
[1718934139218,0.09464954,3528.1,3527.8,1.2548]
[1718934139399,1.78502275,3528.3,3527.8,1.2548]
[1718934139568,0.09464954,3528.0,3527.8,1.2548]
[1718934139767,1.78502275,3528.3,3527.8,1.2548]
[1718934139969,0.09464954,3528.2,3527.8,1.2548]
[1718934140277,1.78502275,3528.3,3527.8,1.2548]
[1718934140475,0.09464954,3528.1,3527.8,1.2548]
[1718934140785,1.78491162,3528.3,3527.8,1.2548]
[1718934140966,0.09464954,3528.0,3527.8,1.2548]
[1718934141166,1.78491162,3528.3,3527.8,1.2548]
[1718934141403,0.09464954,3528.2,3527.8,1.2548]
[1718934141771,1.78491162,3528.3,3527.8,1.2548]
[1718934142089,0.09464954,3528.2,3527.8,1.2548]
[1718934142467,1.78491162,3528.3,3527.8,1.2548]
[1718934142993,0.09464954,3528.2,3527.8,1.2548]
[1718934143621,1.78475844,3528.3,3527.8,1.2548]
[1718934143800,0.09464954,3528.1,3527.8,1.2548]
[1718934143998,1.78468065,3528.3,3527.8,1.2548]
[1718934144210,0.09464954,3528.0,3527.8,1.2548]
[1718934144412,1.78468065,3528.3,3527.8,1.2548]
[1718934144727,0.09464954,3527.9,3527.8,1.2548]
[1718934144890,1.78468065,3528.3,3527.8,1.8048]
[1718934145090,1.78468065,3528.3,3527.8,1.2548]
[1718934145391,0.09464954,3528.2,3527.8,1.2548]
[1718934145718,1.78468065,3528.3,3527.8,1.2548]
[1718934145893,0.09464954,3528.1,3527.8,1.2548]
[1718934146089,1.78468065,3528.3,3527.8,1.2548]
[1718934146740,0.09464954,3528.2,3527.8,1.2548]
[1718934147026,1.78449318,3528.3,3527.8,1.2548]
[1718934147225,0.09464954,3528.1,3527.8,1.2548]
[1718934147424,1.78449318,3528.3,3527.8,1.2548]
[1718934147625,0.09464954,3528.0,3527.8,1.2548]
[1718934147841,1.78449318,3528.3,3527.8,1.2548]
[1718934148030,0.09464954,3527.9,3527.8,1.2548]
[1718934148323,1.78449318,3528.3,3527.8,1.8048]
[1718934148487,0.09464954,3527.9,3527.8,0.868]
[1718934148693,1.78449318,3528.3,3527.8,1.418]
[1718934148894,0.09469237,3527.9,3527.8,0.868]
[1718934149104,1.78449318,3528.3,3527.8,1.418]
[1718934149303,1.78449318,3528.4,3527.8,1.4551]
[1718934149544,1.78449318,3528.7,3528.3,0.868]
[1718934149722,1.78449318,3529.0,3528.6,0.868]
[1718934150042,4.08291557,3529.2,3528.6,0.868]
[1718934150391,4.08213363,3529.2,3528.6,0.868]
[1718934151016,2.2991,3529.2,3528.6,0.868]
[1718934154706,0.08857762,3529.1,3528.5,1.3313]
[1718934158044,0.08857762,3529.1,3528.5,0.868]
[1718934159419,4.07933647,3529.0,3528.3,3.0]
[1718934159619,4.16824682,3529.0,3528.3,3.0]
[1718934160453,1.78023647,3528.9,3528.3,3.0]
[1718934161044,0.08891035,3528.8,3528.3,3.0]
[1718934161355,0.08891035,3528.8,3528.4,1.135718]
[1718934164758,0.59253503,3528.8,3528.4,1.135718]
[1718934164965,1.78023647,3528.6,3528.0,3.0]
[1718934165173,1.78023647,3528.5,3528.0,3.0]
[1718934165378,2.2991,3528.4,3528.0,4.135861]
[1718934165657,2.61581,3528.4,3528.0,4.135861]
[1718934165831,4.39703244,3528.4,3528.0,4.135861]
[1718934166034,0.08872432,3528.3,3528.0,4.135861]
[1718934168953,4.39742885,3528.4,3528.0,4.135861]
[1718934169149,0.08872432,3528.2,3528.0,4.135861]
[1718934169343,4.39742885,3528.4,3528.0,4.135861]
[1718934169658,0.08872432,3528.1,3528.0,3.0]
[1718934169863,1.78161885,3528.3,3528.0,3.0]
[1718934170167,0.08872432,3528.1,3528.0,3.0]
[1718934170336,1.78161885,3528.3,3528.0,3.0]
[1718934170536,0.08872432,3528.1,3528.0,3.0]
[1718934171049,1.78161885,3528.3,3527.9,1.13589]
[1718934171244,0.08872432,3528.1,3527.9,1.13589]
[1718934171441,1.78161885,3528.2,3527.9,1.13589]
[1718934171743,0.08872432,3528.0,3527.9,1.13589]
[1718934171942,2.42978567,3528.3,3527.9,1.13589]
[1718934172162,0.08872432,3528.0,3527.9,1.13589]
[1718934172338,1.78218725,3528.2,3527.9,1.13589]
[1718934172544,0.08872432,3528.0,3527.9,1.13589]
[1718934172741,1.78218725,3528.2,3527.9,1.13589]
[1718934172945,0.08872432,3528.0,3527.9,1.13589]
[1718934173166,1.78218725,3528.2,3527.9,1.13589]
[1718934173335,0.08872432,3528.0,3527.9,1.13589]
[1718934173540,1.78218725,3528.2,3527.9,1.13589]
[1718934173758,0.08872432,3528.0,3527.9,1.13589]
[1718934174467,1.78218725,3528.2,3527.9,1.13589]
[1718934174665,0.08872432,3528.0,3527.9,1.13589]
[1718934174844,1.7827496,3528.2,3527.9,1.13589]
[1718934175033,0.08872432,3528.0,3527.9,1.13589]
[1718934175238,1.7827496,3528.1,3527.9,1.13589]
[1718934175436,0.08872432,3528.0,3527.9,1.13589]
[1718934175658,1.7827496,3528.2,3527.9,1.13589]
[1718934175939,0.08872432,3528.0,3527.9,1.13589]
[1718934176587,1.7827496,3528.2,3527.9,1.13589]
[1718934176737,0.08872432,3528.0,3527.9,1.13589]
[1718934177264,0.08872432,3528.0,3527.4,3.0]
[1718934177265,4.0818496,3528.0,3527.4,3.0]
[1718934177453,4.17029839,3528.0,3527.7,1.135954]
[1718934177844,4.88257333,3528.0,3527.7,1.135954]
[1718934178047,1.78320725,3527.9,3527.4,3.0]
[1718934178366,1.87149861,3527.9,3527.5,1.135996]
[1718934179338,1.78320725,3527.8,3527.5,1.135996]
[1718934179540,1.87149861,3527.9,3527.5,1.135996]
[1718934179756,1.78320725,3527.8,3527.5,1.135996]
[1718934179981,0.08829136,3527.8,3527.5,1.135996]
[1718934180286,1.87149861,3527.8,3527.5,1.135996]
[1718934180653,0.08829136,3527.8,3527.5,1.135996]
[1718934181039,1.78349845,3527.9,3527.5,1.135996]
[1718934181563,0.08829136,3527.8,3527.5,1.135996]
[1718934182142,1.87178981,3527.8,3527.5,1.135996]
[1718934182341,0.08829136,3527.8,3527.5,1.135996]
[1718934182775,1.78349845,3527.9,3527.5,1.135996]
[1718934182982,0.08829136,3527.7,3527.5,4.135996]
[1718934183246,1.78349845,3527.9,3527.5,1.135996]
[1718934183503,0.08829136,3527.8,3527.5,1.135996]
[1718934183847,1.78349845,3527.9,3527.5,1.135996]
[1718934184175,1.7835411,3527.8,3527.5,1.135996]
[1718934184345,1.87183246,3527.8,3527.5,1.135996]
[1718934184546,2.2991,3528.0,3527.5,1.135996]
[1718934184752,1.78341091,3527.7,3527.5,1.135996]
[1718934185087,1.78341091,3527.8,3527.2,3.0]
[1718934185292,1.78334122,3527.8,3527.2,4.136053]
[1718934187146,1.78304973,3527.8,3527.2,4.136053]
[1718934187347,1.78304973,3527.9,3527.2,4.136053]
[1718934187545,1.78304973,3527.9,3527.3,2.4844053]
[1718934188347,1.78304973,3527.9,3527.2,4.136053]
[1718934188548,1.78304973,3527.8,3527.2,5.004053]
[1718934188870,1.78304973,3527.9,3527.2,2.004053]
[1718934190178,2.2991,3528.0,3527.2,2.004053]
[1718934190358,1.78256931,3527.9,3527.2,3.12492021]
[1718934190557,1.78256931,3527.9,3527.3,3.0]
[1718934190807,0.08823409,3527.8,3527.3,3.0]
[1718934191158,0.08823409,3527.8,3527.4,1.3313]
[1718934191554,1.78256931,3528.0,3527.4,1.3313]
[1718934191989,0.08823049,3527.9,3527.4,0.4633]
[1718934192509,0.08823049,3527.9,3527.3,3.0]
[1718934193667,2.2991,3527.8,3527.3,3.0]
[1718934193873,2.38736986,3527.8,3527.3,3.0]
[1718934194073,2.38736986,3527.8,3527.2,2.004053]
[1718934194463,2.2991,3527.8,3527.2,2.004053]
[1718934196171,4.08136537,3527.8,3527.2,2.004053]
[1718934196373,0.08821617,3527.7,3527.2,2.004053]
[1718934196770,4.0815521,3527.8,3527.2,1.136053]
[1718934196975,0.08821617,3527.7,3527.2,1.136053]
[1718934197208,2.2991,3527.8,3527.2,1.136053]
[1718934197368,0.08815177,3527.7,3527.2,1.136053]
[1718934197571,1.7824521,3527.6,3527.2,1.136053]
[1718934197784,1.7824521,3527.6,3527.0,3.0]
[1718934197979,1.7824521,3527.5,3527.0,3.0]
[1718934198184,1.7824521,3527.4,3527.1,1.136151]
[1718934198516,2.2991,3527.3,3527.1,1.136151]
[1718934202967,4.08272433,3527.3,3527.1,1.136151]
[1718934203385,0.0880372,3527.2,3527.1,1.136151]
[1718934203590,4.08320264,3527.3,3527.1,1.136151]
[1718934203784,4.08320264,3527.3,3526.6,3.868]
[1718934203969,0.08790833,3527.2,3526.6,4.92159191]
[1718934204178,4.08320264,3527.3,3526.7,1.136173]
[1718934204506,0.08785821,3527.2,3526.7,1.136173]
[1718934204694,1.87196085,3527.2,3526.7,1.136173]
[1718934204998,1.78410264,3527.2,3526.7,1.136173]
[1718934205773,0.08782598,3527.1,3526.7,1.136173]
[1718934205988,1.78453596,3527.2,3526.8,1.12087921]
[1718934206179,0.08774723,3527.1,3526.8,1.12087921]
[1718934207776,0.08774723,3527.1,3526.8,4.12087921]
[1718934207976,0.08774723,3527.1,3526.8,3.0]
[1718934208208,0.08774723,3527.1,3526.7,2.004173]
[1718934208209,0.08774723,3527.1,3526.7,1.136173]
[1718934208408,1.78453596,3527.2,3526.7,1.136173]
[1718934208908,1.78485772,3527.2,3526.7,1.136173]
[1718934209689,0.08775439,3527.1,3526.7,1.136173]
[1718934210114,1.78485772,3527.2,3526.7,1.136173]
[1718934210412,1.87261211,3527.1,3526.7,1.136173]
[1718934210600,1.78485772,3527.2,3526.7,1.136173]
[1718934210909,1.87261211,3527.1,3526.7,1.136173]
[1718934211277,1.78485772,3527.1,3526.7,1.136173]
[1718934212005,1.78533734,3527.1,3526.7,1.136173]
[1718934213441,4.95243734,3526.9,3526.7,1.136173]
[1718934213585,4.95243734,3526.9,3526.6,3.0]
[1718934213586,5.24999356,3526.9,3526.6,3.0]
[1718934213937,2.17064795,3526.8,3526.6,3.0]
[1718934214391,0.08775439,3526.8,3526.6,3.0]
[1718934214914,5.24999356,3526.9,3526.6,3.0]
[1718934215124,6.02090228,3526.9,3526.6,3.0]
[1718934215424,5.24986112,3526.7,3526.6,3.0]
[1718934215608,3.25443538,3526.7,3526.1,1.136493]
[1718934215795,1.78481305,3526.3,3526.1,1.136493]
[1718934216424,0.08733538,3526.2,3526.1,1.136493]
[1718934216580,1.78481305,3526.3,3526.1,1.136493]
[1718934216782,1.78481305,3526.4,3526.1,1.136493]
[1718934217030,0.77104116,3526.9,3526.1,1.136493]
[1718934217031,1.78481305,3526.6,3526.1,1.599793]
[1718934217181,1.78481305,3526.6,3526.2,0.2467793]
[1718934217182,0.08711689,3526.5,3526.2,0.2467793]
[1718934217616,4.08391305,3526.7,3526.2,0.2467793]
[1718934217829,4.08391305,3526.7,3526.1,1.136493]
[1718934217830,1.8719371,3526.6,3526.1,1.136493]
[1718934218190,0.08712405,3526.6,3526.1,1.136493]
[1718934218351,1.87100396,3526.6,3526.1,1.136493]
[1718934219657,0.08712405,3526.6,3526.1,1.136493]
[1718934221416,1.8705274,3526.6,3526.1,1.136493]
[1718934221622,0.08712405,3526.6,3526.1,1.136493]
[1718934222134,1.78340335,3526.5,3526.1,1.136493]
[1718934222444,0.08714913,3526.4,3526.1,1.136493]
[1718934223305,0.868,3526.6,3526.1,1.136493]
[1718934223805,2.38632076,3526.5,3526.1,1.136493]
[1718934225127,2.38632076,3526.5,3525.7,3.0]
[1718934225335,2.38632076,3526.5,3525.7,4.136524]
[1718934227630,2.2991,3526.5,3525.7,4.136524]
[1718934227830,0.08699149,3526.4,3525.7,4.136524]
[1718934228030,0.08699149,3526.4,3525.7,5.30376831]
[1718934228251,2.2991,3526.5,3525.7,5.30376831]
[1718934228830,0.08698432,3526.4,3525.7,5.30376831]
[1718934229144,2.2991,3526.5,3525.7,5.30376831]
[1718934229732,0.08698072,3526.4,3525.7,5.30376831]
[1718934230150,2.2991,3526.5,3525.7,5.30376831]